[Event "Pia Cramling Ladies Open 2018"]
[Site "Stockholm"]
[Date "2018.09.02"]
[Round "6"]
[White "Puuska, Heini"]
[Black "Lindberg, Cajsa"]
[Result "1-0"]
[ECO "D00"]
[WhiteElo "1961"]
[BlackElo "1625"]
[Annotator "NA"]
[PlyCount "83"]
[EventDate "2018.09.01"]
[EventType "swiss"]
[EventCountry "SWE"]
[SourceTitle "playchess.com"]
[Source "ChessBase"]
[SourceQuality "1"]
[TimeControl "1800+10"]

1. d4 {[%emt 0:00:00]} d5 {[%emt 0:00:00]} 2. Bg5 {[%emt 0:00:00]} Nf6 {[%emt 0:01:00]} 3. Bxf6 {[%emt 0:00:04]} exf6 {[%emt 0:00:13]} 4. e3 {[%emt 0:00:09]} Bd6 {[%emt 0:00:42]} 5. g3 {[%emt 0:01:02]} O-O {[%emt 0:00:28] D00: 1 d4 d5: Unusual lines} 6. Bg2 {[%emt 0:00:05]} c6 {[%emt 0:00:20]} 7. Ne2 {[%emt 0:00:08]} (7. Nd2 Be6 8. Ne2 Nd7 9. O-O f5 10. Rc1 Nf6 11. c4 dxc4 12. Nxc4 Bd5 13. Bxd5 Nxd5 {½-½ (22) Safarli,E (2657)-Iturrizaga Bonelli,E (2641) Berlin 2015}) 7... Nd7 {[%emt 0:01:06]} 8. O-O {[%emt 0:00:17]} f5 {[%emt 0:00:51]} 9. b3 {[%emt 0:00:31]} Nf6 {[%emt 0:00:52] LiveBook: 12 Games} 10. c4 {[%emt 0:00:10]} Rb8 $146 {[%emt 0:01:02]} ({Predecessor:} 10... dxc4 11. bxc4 Be6 12. Qb3 b5 {1-0 (38) Danielian,E (2413)-Karavade,E (2384) Riadh 2017}) 11. Nbc3 {[%emt 0:00:17]} Be6 {[%emt 0:01:55]} 12. cxd5 {[%emt 0:00:38]} Nxd5 {[%emt 0:00:41]} 13. Nxd5 {[%emt 0:00:27]} Bxd5 {[%emt 0:00:08]} 14. Bxd5 {[%emt 0:00:27]} cxd5 {[%emt 0:00:22]} 15. Qd3 {[%emt 0:00:50]} g6 {[%emt 0:00:57]} 16. Qb5 {[%emt 0:00:37]} Bc7 {[%emt 0:04:06]} 17. Nc3 {[%emt 0:01:42]} a6 {[%emt 0:02:54]} 18. Qxd5 {[%emt 0:00:34]} Qf6 {[%emt 0:01:25]} 19. Rac1 {[%emt 0:01:37]} Rfd8 {[%emt 0:00:42]} 20. Qf3 {[%emt 0:01:12]} Qd6 {[%emt 0:00:54]} 21. Rc2 {[%emt 0:00:52]} Ba5 {[%emt 0:00:49]} 22. Na4 {[%emt 0:00:58]} Bb4 {[%emt 0:00:37]} 23. Nc5 {[%emt 0:00:37]} Qe7 {[%emt 0:01:28]} 24. Nd3 {[%emt 0:01:53]} Bd6 {[%emt 0:00:16]} 25. Rc4 {[%emt 0:02:01]} Bc7 {[%emt 0:00:56]} 26. Rfc1 {[%emt 0:00:25]} Bb6 {[%emt 0:01:04]} (26... Bd6 $16 {might work better.} 27. h4 h5) 27. Nf4 {[%emt 0:01:19]} Qd6 {[%emt 0:00:33]} 28. h4 {[%emt 0:01:05]} h5 {[%emt 0:00:31]} 29. Nd3 {[%emt 0:00:51]} Re8 $18 {[%emt 0:01:28]} 30. Nc5 {[%emt 0:00:50]} Qe7 {[%emt 0:00:27]} 31. R1c2 {[%emt 0:01:30]} Red8 {[%emt 0:00:21]} 32. Na4 {[%emt 0:00:44]} Ba5 {[%emt 0:00:53]} 33. Rc5 {[%emt 0:00:35]} b5 {[%emt 0:00:47]} 34. Nb2 {[%emt 0:00:23]} Bb6 {[%emt 0:01:02]} 35. Rc6 {[%emt 0:00:16]} Qa3 {[%emt 0:00:39]} 36. Nd3 {[%emt 0:00:09]} a5 {[%emt 0:01:18]} 37. Nf4 {[%emt 0:00:54]} Qe7 {[%emt 0:01:29]} 38. Nd5 {[%emt 0:01:29]} Rxd5 {[%emt 0:00:35]} 39. Qxd5 {[%emt 0:00:03]} a4 {[%emt 0:00:18]} 40. Rc8+ {[%emt 0:01:42]} Rxc8 {[%emt 0:00:08]} 41. Rxc8+ {[%emt 0:00:02]} Kg7 {[%emt 0:00:10]} 42. Qxb5 {[%emt 0:00:46]} 1-0

[Event "Pia Cramling Ladies Open 2018"]
[Site "Stockholm"]
[Date "2018.09.02"]
[Round "6"]
[White "Berg Laachiri, Susanna"]
[Black "Ostensson, Julia"]
[Result "1-0"]
[ECO "C47"]
[WhiteElo "1903"]
[BlackElo "1375"]
[Annotator "NA"]
[PlyCount "65"]
[EventDate "2018.09.01"]
[EventType "swiss"]
[EventCountry "SWE"]
[SourceTitle "playchess.com"]
[Source "ChessBase"]
[SourceQuality "1"]
[TimeControl "1800+10"]

1. e4 {[%emt 0:00:00]} e5 {[%emt 0:00:00]} 2. Nf3 {[%emt 0:00:00]} Nc6 {[%emt 0:00:14]} 3. Nc3 {[%emt 0:00:00]} Nf6 {[%emt 0:00:23]} 4. d4 {[%emt 0:00:09]} exd4 {[%emt 0:00:37]} 5. Nxd4 {[%emt 0:00:09]} d6 {[%emt 0:01:00]} 6. Bb5 {[%emt 0:03:03]} Bd7 {[%emt 0:01:07]} 7. O-O {[%emt 0:00:19]} Be7 {[%emt 0:00:50] LiveBook: 243 Games} 8. Re1 {[%emt 0:03:37]} Ne5 {[%emt 0:02:55] C66: Ruy Lopez: Steinitz Defence} (8... O-O $11 9. Bxc6 bxc6 10. Bf4 c5 11. Nb3 Bg4 12. Qd3 Nh5 13. Be3 Re8 14. Na5 Bf8 15. Nd5 Bd7 16. Nc3 h6 17. Rad1 Qc8 18. f4 {½-½ (46) Dzhumaev,M (2557)-Mirzoev,A (2557) Tashkent 2013}) 9. Bxd7+ {[%emt 0:02:36]} Nfxd7 {[%emt 0:01:45]} 10. Nf5 {[%emt 0:03:54]} Bf6 {[%emt 0:03:36]} 11. Nd5 {[%emt 0:00:57]} O-O {[%emt 0:01:38]} 12. Re3 $146 {[%emt 0:04:57]} ({Predecessor:} 12. f4 Ng6 13. Qh5 c6 14. Nxf6+ Nxf6 15. Qf3 d5 16. e5 {1-0 (37) Rua,N-Lopez,E Pensilvania 1998}) 12... Re8 {[%emt 0:05:57]} 13. Rg3 {[%emt 0:04:20]} Ng6 {[%emt 0:00:47]} 14. Qe2 {[%emt 0:02:29]} (14. h4 $14) 14... Be5 {[%emt 0:02:58]} 15. Rh3 {[%emt 0:00:31]} Nf6 {[%emt 0:01:13]} 16. Nxf6+ {[%emt 0:01:55]} Qxf6 {[%emt 0:00:15]} 17. Qh5 {[%emt 0:00:11]} h6 {[%emt 0:01:13]} 18. Rf3 {[%emt 0:00:04]} Qe6 {[%emt 0:01:14]} 19. c3 {[%emt 0:00:13]} Ne7 {[%emt 0:01:46]} 20. Ne3 {[%emt 0:00:19]} Qg6 {[%emt 0:00:53]} 21. Qxg6 {[%emt 0:00:34]} Nxg6 {[%emt 0:00:21]} 22. Nd5 {[%emt 0:00:06]} Rac8 {[%emt 0:00:03]} 23. Be3 {[%emt 0:00:12]} c6 {[%emt 0:00:09]} 24. Nb4 {[%emt 0:00:02]} a5 {[%emt 0:01:00]} 25. Nc2 {[%emt 0:00:01]} Bf6 {[%emt 0:00:30]} 26. Rd1 {[%emt 0:00:11]} Rcd8 {[%emt 0:00:28]} 27. Bb6 {[%emt 0:00:05]} Rd7 {[%emt 0:00:04]} 28. Bxa5 {[%emt 0:00:05]} Rxe4 {[%emt 0:00:03]} 29. Bb4 {[%emt 0:00:32]} d5 {[%emt 0:00:26]} 30. Bc5 {[%emt 0:00:16]} Re2 {[%emt 0:00:20]} 31. Rc1 {[%emt 0:00:19]} Rd8 {[%emt 0:00:22]} 32. Kf1 $15 {[%emt 0:00:25]} Rde8 {[%emt 0:00:23]} 33. Be3 {[%emt 0:00:40]} 1-0

[Event "Pia Cramling Ladies Open 2018"]
[Site "Stockholm"]
[Date "2018.09.02"]
[Round "6"]
[White "Johansson, Eva"]
[Black "Mariano-Wågman, Christine Rose"]
[Result "0-1"]
[ECO "E91"]
[WhiteElo "1881"]
[BlackElo "2084"]
[Annotator "NA"]
[PlyCount "108"]
[EventDate "2018.09.01"]
[EventType "swiss"]
[EventCountry "SWE"]
[SourceTitle "playchess.com"]
[Source "ChessBase"]
[SourceQuality "1"]
[TimeControl "1800+10"]

1. d4 {[%emt 0:00:00]} Nf6 {[%emt 0:00:00]} 2. c4 {[%emt 0:00:03]} g6 {[%emt 0:00:00]} 3. Nc3 {[%emt 0:00:19]} Bg7 {[%emt 0:00:00]} 4. e4 {[%emt 0:00:22]} d6 {[%emt 0:00:00]} 5. Nf3 {[%emt 0:00:21] LiveBook: 30080 Games} O-O {[%emt 0:00:03]} 6. Be2 {[%emt 0:00:09]} c6 {[%emt 0:00:04]} 7. O-O {[%emt 0:00:28]} Nbd7 {[%emt 0:00:03]} 8. Bg5 {[%emt 0:01:40]} h6 {[%emt 0:01:15]} 9. Be3 {[%emt 0:01:19]} Qc7 {[%emt 0:00:05]} 10. h3 {[%emt 0:00:46]} e5 {[%emt 0:00:11]} 11. Qd2 {[%emt 0:02:21] E91: King's Indian: Classical: 6 Be2, unusual replies including 6...c5 and 6...Bg4} (11. d5 Kh7 12. Ne1 Ng8 13. Nd3 Nb6 14. c5 Nc4 15. cxd6 Nxd6 16. Rc1 f5 17. f3 fxe4 18. fxe4 Rxf1+ 19. Bxf1 {1-0 (29) Riska,L (2208)-Sudrich,R (2111) Czechia 2011}) 11... Kh7 {[%emt 0:00:10]} 12. Rfd1 $146 {[%emt 0:01:53]} ({Predecessor:} 12. b4 exd4 13. Nxd4 Re8 14. Qc2 a5 15. a3 axb4 16. axb4 Rxa1 17. Rxa1 b5 18. cxb5 c5 {1-0 (27) Juksta,K (2022)-Slivinskas,V Klaipeda 2016}) 12... Ne8 {[%emt 0:00:36]} 13. dxe5 {[%emt 0:00:51]} dxe5 {[%emt 0:00:08]} 14. Ne1 {[%emt 0:02:34]} f5 {[%emt 0:01:48]} 15. f3 {[%emt 0:00:04]} f4 {[%emt 0:00:17]} 16. Bf2 {[%emt 0:00:02]} Rf7 {[%emt 0:00:03]} 17. c5 {[%emt 0:00:22]} Bf8 {[%emt 0:01:29]} 18. b4 {[%emt 0:01:41]} Qd8 {[%emt 0:02:16]} 19. Nd3 {[%emt 0:02:42]} Qg5 {[%emt 0:00:37]} 20. Qe1 {[%emt 0:00:21]} Be7 {[%emt 0:01:00]} 21. Rd2 {[%emt 0:01:42]} Nf8 {[%emt 0:00:06]} 22. Kh2 {[%emt 0:00:45]} Rg7 {[%emt 0:01:12]} 23. Nb2 {[%emt 0:00:39]} Qh5 {[%emt 0:02:34]} 24. Nc4 {[%emt 0:01:00]} Nf6 {[%emt 0:02:11]} 25. Nd6 {[%emt 0:00:50]} Ne6 {[%emt 0:05:31]} 26. Rad1 {[%emt 0:01:25]} Ng5 {[%emt 0:00:22]} 27. Nxc8 {[%emt 0:00:27]} Rxc8 {[%emt 0:00:03]} 28. a4 {[%emt 0:00:49]} Ne6 {[%emt 0:00:20]} 29. Bc4 {[%emt 0:01:20]} Nf8 {[%emt 0:00:46]} 30. Nb1 {[%emt 0:02:25]} g5 {[%emt 0:00:15]} 31. Be2 {[%emt 0:00:05]} Qg6 {[%emt 0:01:31]} 32. g4 {[%emt 0:01:19]} h5 {[%emt 0:00:35]} 33. Kg2 {[%emt 0:00:25]} Kh8 {[%emt 0:01:14]} 34. Bc4 {[%emt 0:00:50]} Rh7 {[%emt 0:00:15]} 35. Kf1 {[%emt 0:01:31]} hxg4 {[%emt 0:00:19]} 36. hxg4 {[%emt 0:00:02]} Rh1+ {[%emt 0:00:00]} 37. Bg1 {[%emt 0:00:01]} Qh6 {[%emt 0:00:01]} 38. Rg2 {[%emt 0:00:06]} Qh3 {[%emt 0:00:16]} 39. Qf2 {[%emt 0:00:07]} Nxg4 {[%emt 0:01:01]} 40. fxg4 f3 41. Rd3 {[%emt 0:00:30]} fxg2+ {[%emt 0:00:08]} 42. Qxg2 {[%emt 0:00:03]} Qxg2+ {[%emt 0:00:08]} 43. Kxg2 {[%emt 0:00:02]} Rh4 {[%emt 0:00:00]} 44. Kg3 {[%emt 0:00:10]} Ng6 {[%emt 0:00:05]} 45. Be6 {[%emt 0:00:30]} Rd8 {[%emt 0:00:20]} 46. Rxd8+ {[%emt 0:00:17]} Bxd8 {[%emt 0:00:00]} 47. Nd2 {[%emt 0:00:24]} Nf4 {[%emt 0:00:02]} 48. Bf5 {[%emt 0:00:18]} Rh3+ {[%emt 0:00:10]} 49. Kf2 {[%emt 0:00:02]} Ra3 {[%emt 0:00:05]} 50. Nc4 {[%emt 0:00:16]} Rxa4 {[%emt 0:00:14]} 51. Nxe5 {[%emt 0:00:10]} Bf6 $19 {[%emt 0:00:00]} 52. Ng6+ {[%emt 0:00:36]} Kg7 {[%emt 0:00:01]} 53. Ke3 {[%emt 0:00:11]} Ra3+ {[%emt 0:00:05]} 54. Kd2 {[%emt 0:00:03]} Nxg6 {[%emt 0:00:02]} 0-1

[Event "Pia Cramling Ladies Open 2018"]
[Site "Stockholm"]
[Date "2018.09.02"]
[Round "6"]
[White "Berg, Maria"]
[Black "Tetenkina, Irina"]
[Result "0-1"]
[ECO "C02"]
[WhiteElo "1722"]
[BlackElo "2214"]
[Annotator "NA"]
[PlyCount "58"]
[EventDate "2018.09.01"]
[EventType "swiss"]
[EventCountry "SWE"]
[SourceTitle "playchess.com"]
[Source "ChessBase"]
[SourceQuality "1"]
[TimeControl "1800+10"]

{[%evp 12,56,25,28,40,32767,32767,32767,32767,-6,-28,-34,32767,-6,32767,32767,16,32767,19,-6,-14,-119,32767,15,21,2,83,84,72,76,89,32767,32767,32767,0,-25,-4,-64,32767,32767,32767,-120,32767,32767,32767,32767,-214]} 1. e4 {[%emt 0:00:00]} e6 {[%emt 0:00:00]} 2. d4 {[%emt 0:00:00]} d5 {[%emt 0:00:00]} 3. e5 {[%emt 0:00:17]} c5 {[%emt 0:00:03]} 4. c3 {[%emt 0:01:00]} Nc6 {[%emt 0:00:03]} 5. Nf3 {[%emt 0:01:15]} Qb6 {[%emt 0:00:29]} 6. Be2 {[%emt 0:03:42]} Bd7 {[%emt 0:01:09]} 7. O-O {[%emt 0:00:05]} Nge7 {[%emt 0:03:12]} 8. dxc5 {[%emt 0:01:38]} Qxc5 {[%emt 0:00:29]} 9. Be3 {[%emt 0:00:03] C02: French: Advance Variation} Qa5 {[%emt 0:00:09]} 10. Bd4 {[%emt 0:05:35]} ({Better is} 10. c4 $14) (10. Nbd2 Qc7 11. Re1 Nxe5 12. Nxe5 Qxe5 13. Bd4 Qc7 14. Bh5 Ng6 15. Nf3 f6 16. Qd3 Be7 17. Bxg6+ hxg6 18. Qxg6+ {0-1 (36) Sevdimaliyev,U (2479)-Mammadov,Z (2482) Rustavi 2014}) 10... Ng6 {[%emt 0:00:47]} 11. Bd3 {[%emt 0:00:39] LiveBook: 3 Games} Be7 {[%emt 0:07:39]} 12. Nbd2 {[%emt 0:03:22]} Qc7 {[%emt 0:00:20]} 13. Re1 {[%emt 0:00:43]} O-O-O $146 {[%emt 0:01:22]} ({Predecessor:} 13... Nf4 14. Bc2 g5 15. Nf1 Rc8 16. Rc1 h5 {1-0 (37) Bax,F-Lui,K Hengelo 2000}) 14. Rc1 {[%emt 0:02:09]} Kb8 {[%emt 0:02:19]} 15. b4 {[%emt 0:00:52]} f6 {[%emt 0:00:32]} 16. Qe2 {[%emt 0:01:15]} (16. Bxg6 $11 hxg6 17. Nb3) 16... Nf4 {[%emt 0:00:52]} 17. Qe3 {[%emt 0:01:18]} Nxd3 {[%emt 0:00:03]} 18. Qxd3 {[%emt 0:00:03]} Bc8 {[%emt 0:06:40]} (18... Nxd4 $11 19. cxd4 Qb6) 19. b5 {[%emt 0:00:40]} Nxd4 {[%emt 0:01:19]} 20. cxd4 {[%emt 0:02:18]} ({Reject} 20. Qxd4 $6 Bc5 $11) 20... Qb6 {[%emt 0:00:05]} 21. Rc2 {[%emt 0:01:35]} Bd7 {[%emt 0:00:02]} 22. Rb1 {[%emt 0:00:09] [#]} f5 $2 {[%emt 0:01:40]} (22... Be8 $1 $19 23. Qe3 Bg6) 23. a4 {[%emt 0:00:06]} Rc8 $1 {[%emt 0:00:06]} 24. Nb3 {[%emt 0:02:12]} (24. Ra2 $1 $11) 24... Rxc2 {[%emt 0:00:18]} 25. Qxc2 {[%emt 0:00:03]} Rc8 {[%emt 0:00:01]} 26. Qd3 {[%emt 0:00:09]} Rc4 {[%emt 0:00:33]} 27. a5 {[%emt 0:01:54]} Qxb5 {[%emt 0:01:48]} 28. Nc5 {[%emt 0:00:01]} Rxc5 $19 {[%emt 0:00:27]} (28... Bxc5 29. Qd1 Bb4) 29. Qxb5 {[%emt 0:01:22]} Rxb5 {[%emt 0:00:04]} 0-1

[Event "Pia Cramling Ladies Open 2018"]
[Site "Stockholm"]
[Date "2018.09.02"]
[Round "6"]
[White "Fransson, Pia"]
[Black "Rinne, Heini"]
[Result "1-0"]
[ECO "D10"]
[WhiteElo "1549"]
[BlackElo "1760"]
[Annotator "NA"]
[PlyCount "75"]
[EventDate "2018.09.01"]
[EventType "swiss"]
[EventCountry "SWE"]
[SourceTitle "playchess.com"]
[Source "ChessBase"]
[SourceQuality "1"]
[TimeControl "1800+10"]

1. d4 {[%emt 0:00:00]} d5 {[%emt 0:00:00]} 2. Nf3 {[%emt 0:00:00]} Nf6 {[%emt 0:00:03]} 3. c4 {[%emt 0:00:00]} c6 {[%emt 0:00:07]} 4. cxd5 {[%emt 0:00:15]} cxd5 {[%emt 0:00:33]} 5. Nc3 {[%emt 0:00:05]} Nc6 {[%emt 0:00:35]} 6. Bf4 {[%emt 0:00:19]} a6 {[%emt 0:01:51]} 7. e3 {[%emt 0:00:24]} Bg4 {[%emt 0:03:12]} 8. h3 {[%emt 0:00:06]} Bxf3 {[%emt 0:00:50]} 9. Qxf3 {[%emt 0:00:12]} e6 {[%emt 0:00:25]} 10. Bd3 {[%emt 0:00:35]} Bd6 {[%emt 0:05:17]} 11. Bxd6 {[%emt 0:00:23]} Qxd6 {[%emt 0:00:01]} 12. O-O {[%emt 0:00:06]} O-O {[%emt 0:00:39]} 13. Rac1 {[%emt 0:00:53]} b5 {[%emt 0:05:06]} 14. Rfd1 {[%emt 0:01:16]} Rfc8 {[%emt 0:07:29]} 15. Bb1 {[%emt 0:00:45]} Qb4 {[%emt 0:02:47]} 16. Qe2 {[%emt 0:01:33]} Na5 {[%emt 0:00:34]} 17. e4 {[%emt 0:02:44]} dxe4 {[%emt 0:00:25]} 18. Nxe4 {[%emt 0:00:25]} Nxe4 {[%emt 0:00:41]} 19. Qxe4 {[%emt 0:00:04]} g6 {[%emt 0:00:20]} 20. b3 {[%emt 0:01:18]} Qa3 {[%emt 0:00:37]} 21. Rc2 {[%emt 0:01:46]} Rxc2 {[%emt 0:00:15]} 22. Qxa8+ {[%emt 0:00:08]} Kg7 {[%emt 0:00:18]} 23. Bxc2 {[%emt 0:00:08]} Qxa2 {[%emt 0:00:00]} 24. Qe4 {[%emt 0:00:22]} Nxb3 {[%emt 0:00:14]} 25. Qe5+ {[%emt 0:00:30]} f6 {[%emt 0:00:56]} 26. Qc7+ {[%emt 0:00:06]} Kh6 {[%emt 0:00:01]} 27. Qf4+ {[%emt 0:00:27]} Kg7 {[%emt 0:00:05]} 28. Bxb3 {[%emt 0:00:37]} Qxb3 {[%emt 0:00:02]} 29. Qc1 {[%emt 0:00:46]} a5 {[%emt 0:00:11]} 30. Re1 {[%emt 0:00:27]} a4 {[%emt 0:00:25]} 31. Qb1 {[%emt 0:00:55]} Qd5 {[%emt 0:00:35]} 32. Rc1 {[%emt 0:00:15]} a3 {[%emt 0:00:26]} 33. Rc7+ {[%emt 0:00:10]} Kg8 {[%emt 0:00:16]} 34. Qb4 {[%emt 0:01:20]} a2 {[%emt 0:00:09]} 35. Ra7 {[%emt 0:00:06]} e5 {[%emt 0:00:07]} 36. Qa3 {[%emt 0:04:45]} exd4 {[%emt 0:00:16]} 37. Ra8+ {[%emt 0:00:52]} Kg7 {[%emt 0:00:04]} 38. Qf8# {[%emt 0:00:04]} 1-0

[Event "Pia Cramling Ladies Open 2018"]
[Site "Stockholm"]
[Date "2018.09.02"]
[Round "6"]
[White "Ristoja, Aulikki"]
[Black "Mirabdulla, Zulfiya"]
[Result "1-0"]
[ECO "D00"]
[WhiteElo "1530"]
[BlackElo "1350"]
[Annotator "NA"]
[PlyCount "63"]
[EventDate "2018.09.01"]
[EventType "swiss"]
[EventCountry "SWE"]
[SourceTitle "playchess.com"]
[Source "ChessBase"]
[SourceQuality "1"]
[TimeControl "1800+10"]

1. d4 {[%emt 0:00:00]} d5 {[%emt 0:00:00]} 2. Bf4 {[%emt 0:00:00]} Nf6 {[%emt 0:00:18]} 3. e3 {[%emt 0:00:00]} a6 {[%emt 0:00:36]} 4. Bd3 {[%emt 0:00:47]} Nc6 {[%emt 0:00:30]} 5. c3 {[%emt 0:00:20]} e6 {[%emt 0:04:24]} 6. h3 {[%emt 0:00:34]} h6 {[%emt 0:00:39]} 7. Nf3 {[%emt 0:01:05]} Bd6 {[%emt 0:00:19]} 8. Ne5 {[%emt 0:00:57]} Ne7 {[%emt 0:03:51]} 9. Nd2 {[%emt 0:01:04]} Nd7 {[%emt 0:01:47]} 10. Ndf3 {[%emt 0:01:09]} Nxe5 {[%emt 0:03:30]} 11. dxe5 {[%emt 0:02:28]} Bc5 {[%emt 0:00:35]} 12. Rc1 {[%emt 0:01:30]} Nc6 {[%emt 0:02:18]} 13. Nd4 {[%emt 0:02:23]} Bxd4 {[%emt 0:01:49]} 14. exd4 {[%emt 0:00:39]} Bd7 {[%emt 0:01:03]} 15. Qg4 {[%emt 0:02:03]} g6 {[%emt 0:02:29]} 16. O-O {[%emt 0:01:57]} h5 {[%emt 0:00:37]} 17. Qg5 {[%emt 0:01:57]} Qxg5 {[%emt 0:00:23]} 18. Bxg5 {[%emt 0:00:03]} Rf8 {[%emt 0:01:55]} 19. Bf6 {[%emt 0:01:21]} Rg8 {[%emt 0:01:20]} 20. f4 {[%emt 0:00:39]} Na7 {[%emt 0:01:42]} 21. c4 {[%emt 0:01:03]} c6 {[%emt 0:01:19]} 22. cxd5 {[%emt 0:00:56]} cxd5 {[%emt 0:00:10]} 23. Rc7 {[%emt 0:02:43]} Rb8 {[%emt 0:01:47]} 24. b3 {[%emt 0:01:46]} Bb5 {[%emt 0:00:13]} 25. Bxb5+ {[%emt 0:01:50]} Nxb5 26. Re7+ {[%emt 0:00:30]} Kf8 {[%emt 0:00:11]} 27. Rd1 {[%emt 0:00:24]} Nc3 {[%emt 0:00:07]} 28. Rd2 {[%emt 0:00:36]} Ne4 {[%emt 0:00:13]} 29. Rc2 {[%emt 0:00:14]} Nxf6 {[%emt 0:00:33]} 30. exf6 {[%emt 0:00:03]} g5 {[%emt 0:00:07]} 31. Rcc7 Rh8 {[%emt 0:00:00]} 32. Rxf7+ 1-0

[Event "Pia Cramling Ladies Open 2018"]
[Site "Stockholm"]
[Date "2018.09.02"]
[Round "7"]
[White "Tetenkina, Irina"]
[Black "Berg Laachiri, Susanna"]
[Result "1-0"]
[ECO "D34"]
[WhiteElo "2214"]
[BlackElo "1903"]
[Annotator "NA"]
[PlyCount "111"]
[EventDate "2018.09.01"]
[EventType "swiss"]
[EventCountry "SWE"]
[SourceTitle "playchess.com"]
[Source "ChessBase"]
[SourceQuality "1"]
[TimeControl "1800+10"]

1. Nf3 {[%emt 0:00:00]} d5 {[%emt 0:00:00]} 2. g3 {[%emt 0:00:16]} Nf6 {[%emt 0:00:00]} 3. Bg2 {[%emt 0:00:05]} c5 {[%emt 0:00:07]} 4. c4 {[%emt 0:00:28]} e6 {[%emt 0:00:03]} 5. O-O {[%emt 0:01:16]} Be7 {[%emt 0:00:16]} 6. cxd5 {[%emt 0:00:18]} exd5 {[%emt 0:00:02]} 7. d4 {[%emt 0:00:02]} O-O {[%emt 0:00:22]} 8. Nc3 {[%emt 0:00:10]} Nc6 {[%emt 0:00:10]} 9. dxc5 {[%emt 0:00:53]} Bxc5 {[%emt 0:03:49]} 10. Bg5 {[%emt 0:00:19]} Be6 {[%emt 0:00:30]} 11. Rc1 {[%emt 0:04:36]} Be7 {[%emt 0:00:07]} 12. Nd4 {[%emt 0:00:39]} h6 {[%emt 0:04:27]} 13. Be3 {[%emt 0:04:35] D34: Tarrasch Defence: 6 g3 Nf6 7 Bg2 Be7 LiveBook: 36 Games} Ne5 {[%emt 0:00:33]} (13... Qd7 14. Qa4 Rfc8 15. Rfd1 Ng4 16. Nxc6 bxc6 17. Bd4 Nf6 18. e4 Bg4 19. Rd2 Nxe4 20. Nxe4 dxe4 {½-½ (33) Georgiev,K (2662)-Berg,E (2583) Gibraltar 2008}) 14. Nxe6 {[%emt 0:02:21]} fxe6 {[%emt 0:00:03]} 15. Bd4 $146 {[%emt 0:00:03]} ({Predecessor:} 15. Bh3 Qd7 16. Qa4 Nc6 17. Nb5 Rfd8 18. Rfd1 a6 19. Nd4 Nxd4 20. Qxd4 Bd6 21. Bxh6 Rf8 22. Bf4 Rae8 23. Bxd6 Qxd6 24. e4 Qe7 25. exd5 exd5 26. Bg2 {1-0 (26) Gundavaa,B (2461)-Khamrakulov,D (2524) Subic Bay 2009}) 15... Nc6 {[%emt 0:01:36]} 16. Na4 {[%emt 0:00:51]} e5 {[%emt 0:05:41]} 17. Bc5 {[%emt 0:00:24]} e4 {[%emt 0:00:33]} 18. Qb3 {[%emt 0:02:20]} Bxc5 {[%emt 0:03:29]} 19. Nxc5 {[%emt 0:00:22]} Qe7 {[%emt 0:00:17] [#]} 20. Nxe4 $1 {[%emt 0:00:29]} Kh8 {[%emt 0:00:41]} 21. Nxf6 {[%emt 0:00:16]} Qxf6 {[%emt 0:00:22]} 22. e3 {[%emt 0:01:02]} ({Bloß nicht} 22. Bxd5 $6 Nd4 $16) ({Finger weg von} 22. Qxd5 $6 Rad8 $18) 22... Ne7 {[%emt 0:00:56]} 23. Rc7 {[%emt 0:00:29]} b6 {[%emt 0:00:53]} 24. Qa3 {[%emt 0:03:02]} Ng6 {[%emt 0:03:43]} 25. Qc3 {[%emt 0:00:19]} ({Auf keinen Fall} 25. Rxa7 Rxa7 26. Qxa7 d4 $18) 25... Ne5 {[%emt 0:00:46]} 26. Bxd5 {[%emt 0:00:58]} Rad8 $18 {[%emt 0:00:19]} 27. Be4 {[%emt 0:01:58]} a5 {[%emt 0:00:28]} 28. f4 {[%emt 0:00:39]} Ng4 {[%emt 0:00:14]} 29. Qxf6 {[%emt 0:00:53]} Nxf6 {[%emt 0:00:01]} 30. Bf3 {[%emt 0:00:02]} Rfe8 {[%emt 0:00:50]} 31. Rc3 {[%emt 0:00:25]} Nd5 {[%emt 0:00:57]} 32. Bxd5 {[%emt 0:00:23]} Rxd5 {[%emt 0:00:02]} 33. Kg2 {[%emt 0:00:05]} b5 {[%emt 0:00:08]} 34. Kf3 {[%emt 0:00:42]} b4 {[%emt 0:00:02]} 35. Rc7 {[%emt 0:00:04]} Rd3 {[%emt 0:00:45]} 36. Re1 {[%emt 0:00:02]} a4 {[%emt 0:00:09]} 37. Rc4 {[%emt 0:01:01]} Rb8 {[%emt 0:00:19]} 38. Rec1 {[%emt 0:01:41]} Kh7 {[%emt 0:00:02]} 39. Ke2 {[%emt 0:00:11]} Rd6 {[%emt 0:00:15]} 40. Rd1 {[%emt 0:00:04]} Rdb6 {[%emt 0:00:03]} 41. Rd7 {[%emt 0:00:08]} b3 {[%emt 0:00:35]} 42. a3 {[%emt 0:00:34]} Ra8 {[%emt 0:00:14]} 43. Rcc7 {[%emt 0:00:02]} Rg6 {[%emt 0:00:01]} 44. Kd3 {[%emt 0:00:46]} h5 {[%emt 0:00:09]} 45. Ke2 {[%emt 0:00:36]} Ra5 {[%emt 0:00:07]} 46. e4 {[%emt 0:00:08]} h4 {[%emt 0:00:06]} 47. Kf3 {[%emt 0:00:01]} hxg3 {[%emt 0:00:29]} 48. hxg3 {[%emt 0:00:01]} Rh5 {[%emt 0:00:19]} 49. f5 {[%emt 0:00:34]} Rgg5 {[%emt 0:00:26]} 50. Kf4 {[%emt 0:00:01]} Kh6 {[%emt 0:00:44]} 51. Rc6+ {[%emt 0:00:28]} g6 {[%emt 0:00:12]} 52. Rd8 {[%emt 0:00:11]} Kg7 {[%emt 0:00:22]} 53. g4 {[%emt 0:00:14]} Rh7 {[%emt 0:00:20]} 54. Rd7+ {[%emt 0:00:06]} Kh6 {[%emt 0:00:06]} 55. Rxh7+ {[%emt 0:00:03]} Kxh7 {[%emt 0:00:03]} 56. Kxg5 {[%emt 0:00:01]} 1-0